[Event "13th All African Rapid-ch Women 2024"]
[Site "Accra"]
[Date "2024.03.10"]
[Round "6.1"]
[White "Wafa, Shahenda"]
[Black "Nassr, Lina"]
[Result "1/2-1/2"]
[ECO "B40"]
[WhiteElo "2083"]
[BlackElo "2080"]
[Annotator "RC"]
[PlyCount "169"]
[EventDate "2024.03.07"]
[EventType "rapid"]
[EventCountry "GHA"]
[SourceTitle "playchess.com"]
[Source "ChessBase"]
[SourceQuality "1"]
[TimeControl "900+10"]

1. e4 {[%emt 0:00:03]} c5 {[%emt 0:00:02]} 2. Nf3 {[%emt 0:00:03]} e6 {[%emt 0:00:03]} 3. d4 {[%emt 0:00:02]} cxd4 {[%emt 0:00:02]} 4. Nxd4 {[%emt 0:00:03]} Nf6 {[%emt 0:00:02]} 5. Nc3 {[%emt 0:00:02]} Bb4 {[%emt 0:00:24]} 6. e5 {[%emt 0:00:02]} Nd5 {[%emt 0:00:06]} 7. Qg4 {[%emt 0:00:03]} Kf8 {[%emt 0:00:02]} 8. Bd3 {[%emt 0:00:11]} h5 {[%emt 0:00:05]} 9. Qe4 {[%emt 0:00:16]} d6 {[%emt 0:01:14]} 10. Ndb5 {[%emt 0:00:53]} dxe5 {[%emt 0:03:08]} 11. Bd2 {[%emt 0:01:22]} f5 {[%emt 0:01:53]} 12. Qxe5 {[%emt 0:03:11]} Nc6 {[%emt 0:00:20]} 13. Qe2 {[%emt 0:01:11]} a6 {[%emt 0:01:20]} 14. Nxd5 {[%emt 0:00:58]} Bxd2+ {[%emt 0:00:35]} 15. Qxd2 {[%emt 0:00:04]} Qxd5 {[%emt 0:00:21]} 16. Nc3 {[%emt 0:00:18]} Qe5+ {[%emt 0:00:56]} 17. Qe2 {[%emt 0:00:21]} Qxe2+ {[%emt 0:00:26]} 18. Bxe2 {[%emt 0:00:28]} e5 {[%emt 0:01:30]} 19. Nd5 {[%emt 0:01:12]} Nd4 {[%emt 0:00:46]} 20. Bd1 {[%emt 0:01:32]} Be6 {[%emt 0:01:16]} 21. Nc7 {[%emt 0:00:11]} Rc8 {[%emt 0:00:06]} 22. Nxe6+ {[%emt 0:00:03]} Nxe6 {[%emt 0:00:02]} 23. c3 {[%emt 0:00:17]} h4 {[%emt 0:00:28]} 24. Bc2 {[%emt 0:00:21]} g6 {[%emt 0:00:43]} 25. O-O-O {[%emt 0:00:14]} Ke7 {[%emt 0:00:08]} 26. Bb3 {[%emt 0:01:36]} Nf4 {[%emt 0:00:56]} 27. g3 {[%emt 0:00:22]} hxg3 {[%emt 0:00:03]} 28. fxg3 {[%emt 0:00:50]} Nh3 {[%emt 0:00:14]} 29. Rd2 {[%emt 0:00:33]} e4 {[%emt 0:00:41]} 30. Bd5 {[%emt 0:00:39]} Rc7 {[%emt 0:01:09]} 31. c4 {[%emt 0:00:53]} Ng5 {[%emt 0:00:15]} 32. h4 {[%emt 0:00:27]} Nf3 {[%emt 0:00:10]} 33. Re2 {[%emt 0:01:05]} Ne5 {[%emt 0:00:27]} 34. b3 {[%emt 0:00:08]} b5 {[%emt 0:00:33]} 35. Rc2 {[%emt 0:00:42]} Nd3+ {[%emt 0:00:09]} 36. Kb1 {[%emt 0:00:05]} Nb4 {[%emt 0:00:07]} 37. Rd2 {[%emt 0:00:06]} Rd8 {[%emt 0:00:15]} 38. a3 {[%emt 0:00:09]} Nxd5 {[%emt 0:00:08]} 39. cxd5 {[%emt 0:00:03]} Rc3 {[%emt 0:00:04]} 40. Kb2 {[%emt 0:00:17]} Rxg3 {[%emt 0:00:05]} 41. h5 {[%emt 0:00:06]} gxh5 {[%emt 0:00:11]} 42. Rxh5 {[%emt 0:00:02]} Kf6 {[%emt 0:00:12]} 43. d6 {[%emt 0:00:16]} Ke5 {[%emt 0:00:05]} 44. Rh6 {[%emt 0:00:24]} e3 {[%emt 0:00:23]} 45. Rc2 {[%emt 0:00:25]} Rxd6 {[%emt 0:00:09]} 46. Rh4 {[%emt 0:00:07]} f4 {[%emt 0:00:11]} 47. Rc5+ {[%emt 0:00:05]} Ke4 {[%emt 0:00:04]} 48. Rc8 {[%emt 0:00:15]} Rd2+ {[%emt 0:00:04]} 49. Kc3 {[%emt 0:00:01]} Kf3 {[%emt 0:00:23]} 50. Rf8 {[%emt 0:00:04]} Rg4 {[%emt 0:00:03]} 51. Rh3+ {[%emt 0:00:02]} Kg2 {[%emt 0:00:16]} 52. Rfh8 {[%emt 0:00:02]} f3 {[%emt 0:00:14]} 53. Rh2+ {[%emt 0:00:02]} Kg3 {[%emt 0:00:05]} 54. R8h3+ {[%emt 0:00:05]} Kf4 {[%emt 0:00:01]} 55. Rxd2 {[%emt 0:00:07]} exd2 {[%emt 0:00:02]} 56. Kxd2 {[%emt 0:00:02]} Rg2+ {[%emt 0:00:34]} 57. Kd3 {[%emt 0:00:14]} Kg4 {[%emt 0:00:11]} 58. Rh8 {[%emt 0:00:04]} Re2 {[%emt 0:00:02]} 59. a4 {[%emt 0:00:08]} Re5 {[%emt 0:00:11]} 60. Rg8+ {[%emt 0:00:21]} Kh3 {[%emt 0:00:05]} 61. axb5 {[%emt 0:00:19]} axb5 {[%emt 0:00:04]} 62. Kd4 {[%emt 0:00:05]} Re1 {[%emt 0:00:22]} 63. Kc5 {[%emt 0:00:16]} f2 {[%emt 0:00:14]} 64. Rf8 {[%emt 0:00:05]} Kg2 {[%emt 0:00:04]} 65. Kxb5 {[%emt 0:00:04]} f1=Q+ {[%emt 0:00:11]} 66. Rxf1 {[%emt 0:00:02]} Kxf1 {[%emt 0:00:02]} 67. Kc5 {[%emt 0:00:03]} Rc1+ {[%emt 0:00:19]} 68. Kd5 {[%emt 0:00:09]} Rb1 {[%emt 0:00:10]} 69. Kc4 {[%emt 0:00:03]} Ke2 {[%emt 0:00:04]} 70. b4 {[%emt 0:00:01]} Ke3 {[%emt 0:00:04]} 71. Kc5 {[%emt 0:00:04]} Ke4 {[%emt 0:00:23]} 72. b5 {[%emt 0:00:03]} Rc1+ {[%emt 0:00:13]} 73. Kd6 {[%emt 0:00:05]} Rd1+ {[%emt 0:00:09]} 74. Kc6 {[%emt 0:00:07]} Ke5 {[%emt 0:00:12]} 75. b6 {[%emt 0:00:03]} Ke6 {[%emt 0:00:08]} 76. Kc7 {[%emt 0:00:02]} Rc1+ {[%emt 0:00:08]} 77. Kd8 {[%emt 0:00:10]} Rd1+ {[%emt 0:00:16]} 78. Kc7 {[%emt 0:00:04]} Rc1+ {[%emt 0:00:12]} 79. Kd8 {[%emt 0:00:01]} Rb1 {[%emt 0:00:01]} 80. Kc7 {[%emt 0:00:02]} Ke7 {[%emt 0:00:17]} 81. b7 {[%emt 0:00:11]} Rc1+ {[%emt 0:00:02]} 82. Kb6 {[%emt 0:00:11]} Rb1+ {[%emt 0:00:12]} 83. Kc7 {[%emt 0:00:01]} Rc1+ {[%emt 0:00:09]} 84. Kb6 {[%emt 0:00:01]} Rb1+ {[%emt 0:00:34]} 85. Kc7 {[%emt 0:00:01]} 1/2-1/2

[Event "13th All African Rapid-ch Women 2024"]
[Site "Accra"]
[Date "2024.03.10"]
[Round "6.2"]
[White "Junior, Ednasia"]
[Black "PEACE SAMSON"]
[Result "1-0"]
[ECO "A40"]
[WhiteElo "1915"]
[BlackElo "1870"]
[Annotator "RC"]
[PlyCount "105"]
[EventDate "2024.03.07"]
[EventType "rapid"]
[EventCountry "GHA"]
[SourceTitle "playchess.com"]
[Source "ChessBase"]
[SourceQuality "1"]
[TimeControl "900+10"]

1. e4 {[%emt 0:00:01]} c5 {[%emt 0:00:04]} 2. Nf3 {[%emt 0:00:01]} g6 {[%emt 0:15:26]} 3. c4 {[%emt 0:00:01]} Bg7 {[%emt 0:00:00]} 4. d4 {[%emt 0:00:01]} cxd4 {[%emt 0:00:00]} 5. Nxd4 {[%emt 0:00:01]} Qb6 {[%emt 0:00:00]} 6. Nb3 {[%emt 0:01:01]} d6 {[%emt 0:00:00]} 7. Be2 {[%emt 0:00:15]} Nf6 {[%emt 0:00:00]} 8. Nc3 {[%emt 0:00:06]} Nc6 {[%emt 0:00:00]} 9. O-O {[%emt 0:00:02]} Be6 {[%emt 0:00:00]} 10. Be3 {[%emt 0:00:13]} Qd8 {[%emt 0:00:00]} 11. f3 {[%emt 0:00:25]} Rc8 {[%emt 0:00:00]} 12. Nd5 {[%emt 0:01:47]} O-O {[%emt 0:00:00]} 13. Qd2 {[%emt 0:00:40]} a6 {[%emt 0:00:00]} 14. Rac1 {[%emt 0:00:36]} Bxd5 {[%emt 0:00:00]} 15. cxd5 {[%emt 0:02:21]} Ne5 {[%emt 0:00:00]} 16. Na5 {[%emt 0:00:32]} b5 {[%emt 0:00:00]} 17. Qb4 {[%emt 0:02:03]} Ne8 {[%emt 0:00:00]} 18. f4 {[%emt 0:00:58]} Rxc1 {[%emt 0:00:00]} 19. Rxc1 {[%emt 0:00:02]} Bh6 {[%emt 0:00:00]} 20. Rc3 {[%emt 0:01:20]} Nc4 {[%emt 0:00:00]} 21. Bxc4 {[%emt 0:00:09]} bxc4 {[%emt 0:00:00]} 22. Nc6 {[%emt 0:00:25]} Qd7 {[%emt 0:00:00]} 23. Rxc4 {[%emt 0:01:37]} Qg4 {[%emt 0:00:00]} 24. Nxe7+ {[%emt 0:00:36]} Kh8 {[%emt 0:03:40]} 25. Qd2 {[%emt 0:00:32]} Qh4 {[%emt 0:00:00]} 26. Nc6 {[%emt 0:00:17]} Bg7 {[%emt 0:00:00]} 27. b3 {[%emt 0:00:21]} Nf6 {[%emt 0:00:00]} 28. h3 {[%emt 0:00:25]} Nh5 {[%emt 0:00:00]} 29. e5 {[%emt 0:01:18]} Bh6 {[%emt 0:00:14]} 30. exd6 {[%emt 0:00:34]} Ng3 {[%emt 0:00:24]} 31. d7 {[%emt 0:00:31]} Nf5 {[%emt 0:00:13]} 32. d8=Q {[%emt 0:00:55]} Rxd8 {[%emt 0:00:02]} 33. Nxd8 {[%emt 0:00:01]} Qxd8 {[%emt 0:00:02]} 34. Re4 {[%emt 0:00:15]} Nxe3 {[%emt 0:00:14]} 35. Qxe3 {[%emt 0:00:06]} Qxd5 {[%emt 0:00:05]} 36. Re8+ {[%emt 0:00:09]} Kg7 {[%emt 0:00:02]} 37. Qc3+ {[%emt 0:00:09]} f6 {[%emt 0:00:08]} 38. Qc7+ {[%emt 0:00:02]} Qf7 {[%emt 0:00:03]} 39. Re7 {[%emt 0:00:02]} Qxe7 {[%emt 0:00:01]} 40. Qxe7+ {[%emt 0:00:01]} Kg8 {[%emt 0:00:01]} 41. Qxf6 {[%emt 0:00:02]} Bg7 {[%emt 0:00:01]} 42. Qxa6 {[%emt 0:00:02]} Bd4+ {[%emt 0:00:03]} 43. Kf1 {[%emt 0:00:02]} Bf6 {[%emt 0:00:03]} 44. b4 {[%emt 0:00:01]} Kf7 {[%emt 0:00:01]} 45. b5 {[%emt 0:00:01]} Be7 {[%emt 0:00:02]} 46. Qc6 {[%emt 0:00:02]} Bd8 {[%emt 0:00:02]} 47. Qd7+ {[%emt 0:00:02]} Be7 {[%emt 0:00:01]} 48. b6 {[%emt 0:00:01]} Kf6 {[%emt 0:00:03]} 49. b7 {[%emt 0:00:01]} Bb4 {[%emt 0:00:12]} 50. Qd4+ {[%emt 0:00:05]} Kf5 {[%emt 0:00:01]} 51. Qxb4 {[%emt 0:00:02]} h5 {[%emt 0:00:01]} 52. b8=Q {[%emt 0:00:03]} h4 {[%emt 0:00:02]} 53. Qe5# {[%emt 0:02:45]} 1-0

[Event "13th All African Rapid-ch Women 2024"]
[Site "Accra"]
[Date "2024.03.10"]
[Round "6.3"]
[White "Mongeli, Sasha"]
[Black "Nakabo, Peninah"]
[Result "1-0"]
[ECO "A05"]
[WhiteElo "1858"]
[BlackElo "1836"]
[Annotator "NA RC"]
[PlyCount "103"]
[EventDate "2024.03.07"]
[EventType "rapid"]
[EventCountry "GHA"]
[SourceTitle "playchess.com"]
[Source "ChessBase"]
[SourceQuality "1"]
[TimeControl "900+10"]

1. Nf3 {[%emt 0:00:48]} d5 {[%emt 0:00:03]} 2. b3 {[%emt 0:00:04]} Nf6 {[%emt 0:00:06]} 3. Bb2 {[%emt 0:00:02]} g6 {[%emt 0:00:09]} 4. g3 {[%emt 0:00:09]} Bg7 {[%emt 0:00:02]} 5. Bg2 {[%emt 0:00:02]} O-O {[%emt 0:00:04]} 6. O-O {[%emt 0:00:06]} c5 {[%emt 0:00:09]} 7. c4 {[%emt 0:00:17] A05: Réti Opening: 1 Nf3 Nf6.} e6 {[%emt 0:00:43]} 8. cxd5 {[%emt 0:00:39]} exd5 {[%emt 0:00:05]} 9. d4 {[%emt 0:00:17]} cxd4 {[%emt 0:00:44]} 10. Bxd4 {[%emt 0:00:18]} Nc6 {[%emt 0:00:13]} 11. Nc3 {[%emt 0:01:20]} Nxd4 {[%emt 0:00:10]} 12. Nxd4 {[%emt 0:00:12]} Bd7 {[%emt 0:01:18]} 13. Rc1 {[%emt 0:00:34]} Bc6 {[%emt 0:00:31]} 14. Nxc6 {[%emt 0:01:55]} bxc6 {[%emt 0:00:02]} 15. Na4 {[%emt 0:00:04]} Rc8 {[%emt 0:00:31]} 16. Qd3 {[%emt 0:11:03]} Rc7 {[%emt 0:00:25]} 17. Rc2 {[%emt 0:00:07]} Qd6 {[%emt 0:12:45]} 18. Rfc1 {[%emt 0:00:34]} Rfc8 {[%emt 0:01:11]} 19. e3 {[%emt 0:01:47]} Kf8 {[%emt 0:01:38]} 20. Nc5 {[%emt 0:00:34]} Nd7 {[%emt 0:00:48]} 21. Na6 {[%emt 0:00:19]} Ne5 {[%emt 0:00:47]} 22. Qe2 {[%emt 0:01:29]} Re7 {[%emt 0:00:23]} 23. Nc5 {[%emt 0:01:38]} f5 {[%emt 0:00:30]} 24. Nd3 {[%emt 0:00:28]} Nxd3 {[%emt 0:00:23]} 25. Qxd3 {[%emt 0:00:02]} Rd7 {[%emt 0:07:39]} 26. Qa6 {[%emt 0:00:22]} Rdc7 {[%emt 0:07:16]} 27. Qa5 {[%emt 0:00:31]} c5 {[%emt 0:00:32]} 28. b4 {[%emt 0:00:51]} c4 {[%emt 0:00:27]} 29. Bxd5 {[%emt 0:00:40]} c3 {[%emt 0:00:04]} 30. Bf3 {[%emt 0:03:08]} Qe7 {[%emt 0:06:28]} 31. a3 {[%emt 0:00:12]} Rd7 {[%emt 0:00:25]} 32. Kg2 {[%emt 0:00:54]} Rcd8 {[%emt 0:00:04]} 33. Qc5 {[%emt 0:00:18]} Qxc5 {[%emt 0:00:15]} 34. bxc5 {[%emt 0:00:02]} Rd2 {[%emt 0:00:25]} 35. c6 {[%emt 0:01:00]} Rxc2 {[%emt 0:00:21]} 36. Rxc2 {[%emt 0:00:02]} Rc8 {[%emt 0:00:09]} 37. Kf1 {[%emt 0:00:08]} Ke7 {[%emt 0:00:03]} 38. Ke2 {[%emt 0:00:04]} Kd6 {[%emt 0:00:06]} 39. Kd3 {[%emt 0:00:14]} Kc5 {[%emt 0:00:05]} 40. Rc1 {[%emt 0:00:41]} Rd8+ {[%emt 0:00:01]} 41. Kc2 {[%emt 0:00:06]} Rb8 {[%emt 0:00:13]} 42. Rb1 {[%emt 0:00:04]} Rd8 {[%emt 0:01:14]} 43. Rd1 {[%emt 0:00:03]} Rb8 {[%emt 0:00:41]} 44. Rb1 {[%emt 0:00:15]} Rd8 {[%emt 0:00:33]} 45. Rb7 {[%emt 0:00:18]} Rd2+ {[%emt 0:00:02]} 46. Kc1 {[%emt 0:00:06]} Rxf2 {[%emt 0:01:01]} 47. c7 {[%emt 0:00:06]} Rf1+ {[%emt 0:01:39]} 48. Bd1 {[%emt 0:00:03]} Bh6 {[%emt 0:00:37]} 49. c8=Q+ {[%emt 0:00:05]} Kd6 {[%emt 0:00:10]} 50. Rd7+ {[%emt 0:00:16]} Ke5 {[%emt 0:00:11]} 51. Qe8+ {[%emt 0:00:08]} Kf6 {[%emt 0:00:01]} 52. Qe7# {[%emt 0:00:04]} 1-0

[Event "13th All African Rapid-ch Women 2024"]
[Site "Accra"]
[Date "2024.03.10"]
[Round "6.4"]
[White "Yavo Tchetche, Marie"]
[Black "Marochkina, Nadezhda Valerevna"]
[Result "0-1"]
[ECO "D11"]
[WhiteElo "1659"]
[BlackElo "1819"]
[Annotator "NA RC"]
[PlyCount "91"]
[EventDate "2024.03.07"]
[EventType "rapid"]
[EventCountry "GHA"]
[SourceTitle "playchess.com"]
[Source "ChessBase"]
[SourceQuality "1"]
[TimeControl "900+10"]

1. d4 {[%emt 0:00:47]} d5 {[%emt 0:00:03]} 2. Nf3 {[%emt 0:00:02]} c6 {[%emt 0:00:11]} 3. g3 {[%emt 0:00:01]} Bf5 {[%emt 0:00:07]} 4. Bg2 {[%emt 0:00:03]} h6 {[%emt 0:00:02]} 5. Nbd2 {[%emt 0:00:29]} Nf6 {[%emt 0:00:04]} 6. O-O {[%emt 0:00:35]} e6 {[%emt 0:00:01]} 7. c4 {[%emt 0:00:12]} Nbd7 {[%emt 0:00:49]} 8. a3 {[%emt 0:01:29]} a5 {[%emt 0:00:38]} 9. b3 {[%emt 0:01:16]} Be7 {[%emt 0:00:07]} 10. Re1 {[%emt 0:00:22]} O-O {[%emt 0:00:02]} 11. Nh4 {[%emt 0:00:40]} Bh7 {[%emt 0:00:11]} 12. Bb2 {[%emt 0:02:17]} Rb8 {[%emt 0:00:51]} 13. Nhf3 {[%emt 0:00:18]} Ne4 {[%emt 0:01:20]} 14. Ne5 {[%emt 0:00:32]} Ndf6 {[%emt 0:00:43]} 15. f3 {[%emt 0:00:10]} Nd6 {[%emt 0:00:23]} 16. e4 {[%emt 0:01:01]} Nde8 {[%emt 0:03:04]} 17. Rc1 {[%emt 0:00:48]} Nd7 {[%emt 0:00:32]} 18. Nxd7 {[%emt 0:00:43]} Qxd7 {[%emt 0:00:03]} 19. Qe2 {[%emt 0:01:01]} Nc7 {[%emt 0:00:25]} 20. exd5 {[%emt 0:00:58]} cxd5 {[%emt 0:00:05]} 21. f4 {[%emt 0:00:20]} Bf6 {[%emt 0:00:28]} 22. Nf3 {[%emt 0:00:15]} Rfd8 {[%emt 0:01:46]} 23. Ne5 {[%emt 0:00:06]} Qe8 {[%emt 0:00:34]} 24. c5 {[%emt 0:00:51]} Nb5 {[%emt 0:02:20]} 25. a4 {[%emt 0:00:45]} Na7 {[%emt 0:00:08]} 26. Qd2 {[%emt 0:00:12]} Bxe5 {[%emt 0:00:33]} 27. fxe5 {[%emt 0:00:31]} Nc6 {[%emt 0:00:01]} 28. Bc3 {[%emt 0:00:19]} Ra8 {[%emt 0:00:10]} 29. Bf1 {[%emt 0:00:24]} Qd7 {[%emt 0:00:34]} 30. Bb5 {[%emt 0:00:41]} Qc7 {[%emt 0:00:03]} 31. Rf1 {[%emt 0:00:45]} Ne7 {[%emt 0:01:49]} 32. Rf2 {[%emt 0:00:49]} Bg6 {[%emt 0:00:12]} 33. Rcf1 {[%emt 0:00:04]} Rf8 {[%emt 0:00:04]} 34. Bd3 {[%emt 0:00:16]} b6 {[%emt 0:00:43]} 35. cxb6 {[%emt 0:00:27]} Qxb6 {[%emt 0:00:01]} 36. Bb5 {[%emt 0:00:10]} Nc8 {[%emt 0:00:20]} 37. b4 {[%emt 0:00:41]} axb4 {[%emt 0:00:22]} 38. Bxb4 {[%emt 0:00:00]} Rd8 {[%emt 0:00:03]} 39. Bc5 {[%emt 0:00:20]} Qb7 {[%emt 0:00:43]} 40. Ra1 {[%emt 0:00:00]} Na7 {[%emt 0:00:03]} 41. Bxa7 {[%emt 0:00:06]} Rxa7 {[%emt 0:00:08]} 42. Rff1 {[%emt 0:00:09]} Rb8 {[%emt 0:00:43]} 43. Rfc1 {[%emt 0:00:04]} Qe7 {[%emt 0:00:32]} 44. Qc3 {[%emt 0:00:13]} Rba8 {[%emt 0:00:13]} 45. Qc5 {[%emt 0:00:18]} Qg5 {[%emt 0:00:10]} 46. Bc6 {[%emt 0:00:40]} 0-1

[Event "13th All African Rapid-ch Women 2024"]
[Site "Accra"]
[Date "2024.03.10"]
[Round "6.5"]
[White "Mbatha, Constance"]
[Black "Shaba, Linda Dalitso"]
[Result "0-1"]
[ECO "C01"]
[WhiteElo "1799"]
[BlackElo "1836"]
[Annotator "NA RC"]
[PlyCount "154"]
[EventDate "2024.03.07"]
[EventType "rapid"]
[EventCountry "GHA"]
[SourceTitle "playchess.com"]
[Source "ChessBase"]
[SourceQuality "1"]
[TimeControl "900+10"]

1. e4 {[%emt 0:00:02]} e6 {[%emt 0:00:02]} 2. d4 {[%emt 0:00:01]} d5 {[%emt 0:00:02]} 3. exd5 {[%emt 0:00:03]} exd5 {[%emt 0:00:01]} 4. Nf3 {[%emt 0:00:02]} Nf6 {[%emt 0:00:04]} 5. Be2 {[%emt 0:00:03]} Bf5 {[%emt 0:00:02]} 6. Bg5 {[%emt 0:00:08] C01: French: Exchange Variation.} Bd6 {[%emt 0:00:23]} 7. h3 {[%emt 0:00:17]} O-O {[%emt 0:00:03]} 8. O-O {[%emt 0:00:03]} Nbd7 {[%emt 0:00:02]} 9. Nbd2 {[%emt 0:00:10]} c6 {[%emt 0:00:02]} 10. Re1 {[%emt 0:00:05]} Qc7 {[%emt 0:00:03]} 11. Nf1 {[%emt 0:00:19]} Rfe8 {[%emt 0:00:15]} 12. c4 {[%emt 0:00:34]} dxc4 {[%emt 0:00:29]} 13. Bxc4 {[%emt 0:00:07]} h6 {[%emt 0:00:20]} 14. Bxf6 {[%emt 0:00:07]} Nxf6 {[%emt 0:00:05]} 15. Qb3 {[%emt 0:00:05]} Be4 {[%emt 0:01:05]} 16. N3d2 {[%emt 0:01:15]} Bd5 {[%emt 0:00:10]} 17. Ne3 {[%emt 0:00:21]} Bxc4 {[%emt 0:00:33]} 18. Ndxc4 {[%emt 0:00:17]} Bf4 {[%emt 0:00:19]} 19. Nf1 {[%emt 0:00:20]} Nd5 {[%emt 0:01:43]} 20. Nce3 {[%emt 0:01:07]} Bxe3 {[%emt 0:02:17]} 21. fxe3 {[%emt 0:00:03]} Nf6 {[%emt 0:00:07]} 22. Rac1 {[%emt 0:00:31]} Qd7 {[%emt 0:00:16]} 23. Re2 {[%emt 0:01:07]} Re7 {[%emt 0:00:36]} 24. Rce1 {[%emt 0:00:18]} Rae8 {[%emt 0:00:03]} 25. Qa3 {[%emt 0:00:16]} a6 {[%emt 0:00:01]} 26. b4 {[%emt 0:00:16]} Qd5 {[%emt 0:00:25]} 27. Qb2 {[%emt 0:00:15]} Qb5 {[%emt 0:00:25]} 28. a3 {[%emt 0:00:12]} Ne4 {[%emt 0:01:35]} 29. Qc2 {[%emt 0:01:03]} Qg5 {[%emt 0:00:19]} 30. Qd3 {[%emt 0:01:10]} Qg6 {[%emt 0:01:51]} 31. Qb3 {[%emt 0:00:24]} Ng5 {[%emt 0:00:46]} 32. Kh1 {[%emt 0:00:31]} Qd6 {[%emt 0:00:17]} 33. a4 {[%emt 0:00:37]} Re4 {[%emt 0:00:22]} 34. Nh2 {[%emt 0:01:26]} h5 {[%emt 0:00:43]} 35. b5 {[%emt 0:00:43]} cxb5 {[%emt 0:00:28]} 36. axb5 {[%emt 0:00:01]} axb5 {[%emt 0:01:00]} 37. Qxb5 {[%emt 0:00:16]} Qe7 {[%emt 0:01:09]} 38. Nf3 {[%emt 0:01:29]} Nxf3 {[%emt 0:00:17]} 39. gxf3 {[%emt 0:00:00]} Rh4 {[%emt 0:00:16]} 40. Kg2 {[%emt 0:00:02]} Qe6 {[%emt 0:00:09]} 41. Rh1 {[%emt 0:00:12]} Rxd4 {[%emt 0:00:18]} 42. Qxb7 {[%emt 0:00:37]} h4 {[%emt 0:00:33]} 43. Kf2 {[%emt 0:00:56]} Rd3 {[%emt 0:00:10]} 44. Qa7 {[%emt 0:00:29]} Qe5 {[%emt 0:00:43]} 45. Rg1 {[%emt 0:01:01]} Qh2+ {[%emt 0:00:48]} 46. Rg2 {[%emt 0:00:01]} Qxh3 {[%emt 0:00:04]} 47. Qc5 {[%emt 0:00:47]} Re6 {[%emt 0:01:01]} 48. Qc8+ {[%emt 0:00:35]} Kh7 {[%emt 0:00:02]} 49. Qc2 {[%emt 0:00:01]} Qf5 {[%emt 0:00:14]} 50. Qc4 {[%emt 0:00:53]} Rh6 {[%emt 0:00:16]} 51. Rh2 {[%emt 0:00:16]} h3 {[%emt 0:00:26]} 52. Qc2 {[%emt 0:00:25]} g6 {[%emt 0:00:00]} 53. Qa2 {[%emt 0:00:38]} Rd6 {[%emt 0:00:00]} 54. Qb2 {[%emt 0:00:08]} Rf6 {[%emt 0:00:04]} 55. f4 {[%emt 0:00:12]} Qe6 {[%emt 0:00:10]} 56. Ke1 {[%emt 0:00:10]} Rf5 {[%emt 0:00:06]} 57. Qd4 {[%emt 0:00:12]} Rd5 {[%emt 0:00:07]} 58. Qa4 {[%emt 0:00:10]} Qd6 {[%emt 0:00:05]} 59. Qa2 {[%emt 0:00:06]} Rd1+ {[%emt 0:00:07]} 60. Kf2 {[%emt 0:00:03]} Qf6 {[%emt 0:00:07]} 61. Rd2 {[%emt 0:00:44]} Qh4+ {[%emt 0:00:07]} 62. Ke2 {[%emt 0:00:01]} Qg4+ {[%emt 0:00:05]} 63. Kd3 {[%emt 0:00:07]} Qd7+ {[%emt 0:00:16]} 64. Ke2 {[%emt 0:00:02]} Rxd2+ {[%emt 0:00:02]} 65. Qxd2 {[%emt 0:00:01]} Qxd2+ {[%emt 0:00:14]} 66. Kxd2 {[%emt 0:00:01]} Kg7 {[%emt 0:00:02]} 67. Ke2 {[%emt 0:00:02]} Kf6 {[%emt 0:00:01]} 68. Kf3 {[%emt 0:00:01]} g5 {[%emt 0:00:04]} 69. e4 $2 {[%emt 0:01:03]} (69. Kg3 $11 {and White stays safe.}) 69... Rh4 {[%emt 0:00:26]} 70. fxg5+ $19 {[%emt 0:00:34]} Kxg5 {[%emt 0:00:02]} 71. Ke3 {[%emt 0:00:11]} Kg4 {[%emt 0:00:08]} 72. Rh1 {[%emt 0:00:06]} h2 {[%emt 0:00:02]} 73. Kf2 {[%emt 0:00:03]} Kh3 {[%emt 0:00:36]} 74. Kf3 {[%emt 0:00:10]} f6 {[%emt 0:00:05]} 75. Re1 {[%emt 0:00:11]} Rg4 {[%emt 0:00:32]} 76. Re3 {[%emt 0:00:23]} h1=Q+ {[%emt 0:00:06]} 77. Ke2+ {[%emt 0:00:01]} Rg3 {[%emt 0:00:03]} 0-1

[Event "13th All African Rapid-ch Women 2024"]
[Site "Accra"]
[Date "2024.03.10"]
[Round "6.6"]
[White "Benson, Maud"]
[Black "Banda Natalie Katlo"]
[Result "0-1"]
[ECO "D11"]
[WhiteElo "1664"]
[BlackElo "1772"]
[Annotator "NA RC"]
[PlyCount "90"]
[EventDate "2024.03.07"]
[EventType "rapid"]
[EventCountry "GHA"]
[SourceTitle "playchess.com"]
[Source "ChessBase"]
[SourceQuality "1"]
[TimeControl "900+10"]

1. d4 {[%emt 0:00:04]} d5 {[%emt 0:00:00]} 2. c4 {[%emt 0:00:09]} c6 {[%emt 0:00:04]} 3. Nf3 {[%emt 0:00:03]} Nf6 {[%emt 0:00:02]} 4. g3 {[%emt 0:00:01]} Bg4 {[%emt 0:00:26]} 5. Bg2 {[%emt 0:00:03]} e6 {[%emt 0:00:02]} 6. b3 {[%emt 0:00:13]} Nbd7 {[%emt 0:00:12]} 7. Nc3 {[%emt 0:00:04]} Bb4 {[%emt 0:00:02]} 8. Bb2 {[%emt 0:00:10]} Qa5 {[%emt 0:00:24]} 9. Qc2 {[%emt 0:01:04]} Bf5 {[%emt 0:00:11]} 10. Qc1 {[%emt 0:00:22]} Ne4 {[%emt 0:00:03]} 11. a3 {[%emt 0:00:03]} Bxc3+ {[%emt 0:00:04]} 12. Bxc3 {[%emt 0:00:04]} Qxc3+ {[%emt 0:00:05]} 13. Qxc3 {[%emt 0:00:02]} Nxc3 {[%emt 0:00:02]} 14. Rc1 {[%emt 0:00:14]} Ne4 {[%emt 0:00:13]} 15. O-O {[%emt 0:00:02]} O-O {[%emt 0:00:05]} 16. Nh4 {[%emt 0:00:02]} Bg6 {[%emt 0:00:19]} 17. cxd5 {[%emt 0:00:17]} exd5 {[%emt 0:00:18]} 18. Nxg6 {[%emt 0:00:04]} hxg6 {[%emt 0:00:05]} 19. Bxe4 {[%emt 0:00:07]} dxe4 {[%emt 0:00:02]} 20. e3 {[%emt 0:00:02]} Rfc8 {[%emt 0:00:41]} 21. Rc3 {[%emt 0:00:04]} Nb6 {[%emt 0:00:22]} 22. Rfc1 {[%emt 0:00:02]} Nd5 {[%emt 0:00:01]} 23. R3c2 {[%emt 0:00:02]} Kf8 {[%emt 0:00:06]} 24. b4 {[%emt 0:00:15]} Ke7 {[%emt 0:00:03]} 25. b5 {[%emt 0:00:03]} Kd7 {[%emt 0:00:03]} 26. bxc6+ {[%emt 0:00:05]} Rxc6 {[%emt 0:00:01]} 27. Rc5 {[%emt 0:00:03]} Kd6 {[%emt 0:00:14]} 28. Kf1 {[%emt 0:00:11]} Rac8 {[%emt 0:00:01]} 29. Ke1 {[%emt 0:00:08]} Rxc5 {[%emt 0:00:02]} 30. dxc5+ {[%emt 0:00:02]} Rxc5 {[%emt 0:00:01]} 31. Rb1 {[%emt 0:00:04]} b6 {[%emt 0:00:05]} 32. Kd2 {[%emt 0:00:02]} Rc3 {[%emt 0:00:05]} 33. Rb5 {[%emt 0:00:04]} Rxa3 {[%emt 0:00:04]} 34. Rb2 {[%emt 0:00:06]} a5 {[%emt 0:00:10]} 35. Rc2 {[%emt 0:00:08]} Nb4 {[%emt 0:00:17]} 36. Rc8 {[%emt 0:00:04]} Ra2+ {[%emt 0:00:09]} 37. Ke1 {[%emt 0:00:03]} Nd3+ {[%emt 0:00:05]} 38. Kf1 {[%emt 0:00:02]} Rxf2+ {[%emt 0:00:02]} 39. Kg1 {[%emt 0:00:02]} a4 {[%emt 0:00:19]} 40. Ra8 {[%emt 0:00:02]} b5 {[%emt 0:00:02]} 41. Ra7 {[%emt 0:00:04]} Kc5 {[%emt 0:00:12]} 42. Rc7+ {[%emt 0:00:03]} Kb4 {[%emt 0:00:01]} 43. Rd7 {[%emt 0:00:06]} a3 {[%emt 0:00:03]} 44. Rd4+ {[%emt 0:00:01]} Kc3 {[%emt 0:00:04]} 45. Rxe4 {[%emt 0:00:02]} a2 {[%emt 0:00:08]} 0-1